[Event "German-ch Blitz Women 2022"]
[Site "Magdeburg"]
[Date "2022.08.13"]
[Round "11.8"]
[White "Melamed, Tatjana"]
[Black "Skibbe, Diana"]
[Result "1-0"]
[ECO "C81"]
[WhiteElo "2380"]
[BlackElo "1943"]
[Annotator "TA"]
[PlyCount "67"]
[EventDate "2022.08.10"]
[EventType "tourn"]
[EventCountry "GER"]
[SourceTitle "playchess.com"]
[Source "ChessBase"]
[SourceQuality "1"]
[TimeControl "180+2"]

{[%evp 22,67,16,30,70,75,85,79,377,370,379,343,412,429,511,363,419,302,399,327,451,362,365,339,368,317,488,470,522,525,593,599,600,594,636,631,625,627,675,668,720,732,708,695,745,718,728,703]} 1. e4 {[%emt 0:00:01]} e5 {[%emt 0:00:01]} 2. Nf3 {[%emt 0:00:02]} Nc6 {[%emt 0:00:01]} 3. Bb5 {[%emt 0:00:01][%cal Bf1b5,Bb5a4,Ba4b3,Bb3c4,Bc4d3,Bd3c2][%mdl 32]} a6 {[%emt 0:00:01]} 4. Ba4 {[%emt 0:00:01]} Nf6 {[%emt 0:00:01]} 5. O-O {[%emt 0:00:01]} Nxe4 {[%emt 0:00:01]} 6. d4 {[%emt 0:00:02]} b5 {[%emt 0:00:02]} 7. Bb3 {[%emt 0:00:01]} d5 {[%emt 0:00:02]} 8. dxe5 {[%emt 0:00:02]} Be6 {[%emt 0:00:00]} 9. Qe2 {[%emt 0:00:01]} Be7 {[%emt 0:00:04]} 10. Rd1 {[%emt 0:00:02]} O-O {[%emt 0:00:07]} 11. c4 {[%emt 0:00:01]} bxc4 {[%emt 0:00:11]} 12. Bxc4 {[%emt 0:00:02]} Na5 {[%emt 0:00:18] C81: Open Ruy Lopez: Keres Variation (9 Qe2).} 13. Bd3 {[%emt 0:00:24]} Nc5 {[%emt 0:00:06] [#]} 14. Bc2 {[%emt 0:00:01] [#] Strongly threatening b4. White is more active.} f5 $146 {[%emt 0:00:33][%mdl 8192]} (14... Nd7 $16) ({Predecessor:} 14... Nc6 15. Nc3 Nb4 16. Bb1 a5 17. Nd4 Qe8 18. f4 f5 19. a3 Nc6 20. Nxe6 Nxe6 21. Nxd5 {1-0 (28) Jarmula,L (2499)-Toure,V (2027) Teplice 2018}) 15. b4 $18 {[%emt 0:00:02]} Ne4 {[%emt 0:00:09]} 16. bxa5 {[%emt 0:00:03]} Bc5 {[%emt 0:00:05]} 17. Be3 {[%emt 0:00:04]} Qe7 {[%emt 0:00:01]} 18. Bxe4 {[%emt 0:00:12]} fxe4 {[%emt 0:00:16]} 19. Nd4 {[%emt 0:00:03]} Bd7 {[%emt 0:00:16]} 20. Nc3 {[%emt 0:00:01]} c6 {[%emt 0:00:09]} 21. Nb3 {[%emt 0:00:12]} Bxe3 {[%emt 0:00:05]} 22. Qxe3 {[%emt 0:00:01]} Qxe5 {[%emt 0:00:02]} 23. Qd4 {[%emt 0:00:15]} Qg5 {[%emt 0:00:09]} (23... Qh5 {was necessary.} 24. Nxe4 Rf4) 24. Nxe4 {[%emt 0:00:09] White is clearly winning.} dxe4 {[%emt 0:00:15]} 25. Qxd7 {[%emt 0:00:01]} e3 {[%emt 0:00:00]} 26. Qe6+ {[%emt 0:00:03]} Kh8 {[%emt 0:00:02]} 27. Qxe3 {[%emt 0:00:02]} Qf6 {[%emt 0:00:02]} 28. Rac1 {[%emt 0:00:06]} Rae8 {[%emt 0:00:01]} 29. Qd4 {[%emt 0:00:04]} Qe6 {[%emt 0:00:14]} 30. h3 {[%emt 0:00:08]} Qe2 {[%emt 0:00:06]} 31. Rd2 {[%emt 0:00:10]} Qb5 {[%emt 0:00:07]} 32. Qc5 {[%emt 0:00:21]} Qb7 {[%emt 0:00:08]} 33. Nd4 {[%emt 0:00:06]} Qd7 {[%emt 0:00:17]} 34. Nf3 {[%emt 0:00:05] White took control after the opening.  Weighted Error Value: White=0.33/Black=0.80} 1-0

[Event "German-ch Blitz Women 2022"]
[Site "Magdeburg"]
[Date "2022.08.13"]
[Round "11.9"]
[White "Schulze, Lara"]
[Black "Braun, Kristin"]
[Result "1-0"]
[ECO "B76"]
[WhiteElo "2292"]
[BlackElo "1897"]
[Annotator "TA"]
[PlyCount "49"]
[EventDate "2022.08.10"]
[EventType "tourn"]
[EventCountry "GER"]
[SourceTitle "playchess.com"]
[Source "ChessBase"]
[SourceQuality "1"]
[TimeControl "180+2"]

{[%evp 25,49,53,61,-12,40,54,103,68,224,215,443,171,179,182,295,301,300,281,291,289,342,324,381,363,1240,1215]} 1. e4 {[%emt 0:00:01]} c5 {[%emt 0:00:00]} 2. Nf3 {[%emt 0:00:01]} d6 {[%emt 0:00:00]} 3. d4 {[%emt 0:00:02]} cxd4 {[%emt 0:00:01]} 4. Nxd4 Nf6 5. Nc3 g6 6. Be3 {[%emt 0:00:05]} Bg7 {[%emt 0:00:01]} 7. f3 {[%emt 0:00:01]} O-O {[%emt 0:00:02]} 8. Qd2 Nc6 9. O-O-O d5 10. exd5 {[%emt 0:00:06]} Nxd5 {[%emt 0:00:01]} 11. Nxc6 {[%emt 0:00:03]} bxc6 {[%emt 0:00:01]} 12. Bd4 {[%emt 0:00:04]} e5 {[%emt 0:00:08]} 13. Bc5 {[%emt 0:00:02]} Re8 {[%emt 0:00:10] is the new trend.} 14. h4 {[%emt 0:00:02] B76: Sicilian Dragon: Yugoslav Attack, 9 g4 and 9 0-0-0.} ({White should try} 14. Ne4 $14) 14... h5 {[%emt 0:00:07]} (14... Qa5 $11 15. Nxd5 Qxc5) 15. Ne4 $14 {[%emt 0:00:14][%cal Og2g4]} Qc7 {[%emt 0:00:40]} (15... Bf5 $14) 16. Bc4 {[%emt 0:00:30][%cal Bf1c4,Bc4b3,Bb3f7][%mdl 32] [#] Threatens to win with g4. White is more active. White is better.} Nb6 $146 {[%emt 0:00:38] [#]} (16... Bf5 $14) ({Predecessor:} 16... Be6 17. Bb3 Rad8 18. Qf2 Rd7 19. Rhg1 Nf4 20. Bxe6 Nxe6 21. g4 Rxd1+ 22. Rxd1 Nxc5 23. Qxc5 hxg4 24. fxg4 {1-0 (55) Schneider,A (1714)-Oberhofer,M (1771) Willingen 2021}) 17. Bb3 $18 {[%emt 0:00:06][%cal Og2g4] And now g4! would win.} Ba6 $2 {[%emt 0:00:08]} (17... Be6 {keeps fighting.} 18. Bxe6 Rxe6) 18. Qd6 $2 {[%emt 0:00:39]} (18. g4) 18... Qxd6 {[%emt 0:00:12]} 19. Nxd6 {[%emt 0:00:02]} ({Much less strong is} 19. Rxd6 Bc4 $16) 19... Red8 {[%emt 0:00:03]} (19... Rf8 {is a better defense.} 20. Kb1 Nd5 21. Bxd5 cxd5) 20. Bxf7+ {[%emt 0:00:12]} Kh7 {[%emt 0:00:04]} 21. Bb3 {[%emt 0:00:07]} Bh6+ {[%emt 0:00:18]} 22. Kb1 {[%emt 0:00:01]} Rd7 {[%emt 0:00:02]} 23. Ne4 {[%emt 0:00:03] [#] aiming for Nf6+.} Rxd1+ {[%emt 0:00:10]} 24. Rxd1 {[%emt 0:00:01]} Re8 $2 {[%emt 0:00:25]} (24... Bf8 25. Bd6 Bc4 26. Bxe5 Bxb3) 25. Nf6+ {[%emt 0:00:02] Black got outplayed after the opening.  Weighted Error Value: White=0.41/Black=0.61} 1-0

[Event "German-ch Blitz Women 2022"]
[Site "Magdeburg"]
[Date "2022.08.13"]
[Round "11.10"]
[White "Nikolaeva, Mariya A"]
[Black "Grabowski, Petra"]
[Result "1-0"]
[ECO "C02"]
[WhiteElo "1309"]
[BlackElo "1643"]
[Annotator "NA RC COMBH"]
[PlyCount "115"]
[EventDate "2022.08.10"]
[EventType "tourn"]
[EventCountry "GER"]
[SourceTitle "playchess.com"]
[Source "ChessBase"]
[SourceQuality "1"]
[TimeControl "180+2"]

1. e4 e6 2. d4 {[%emt 0:00:02]} d5 {[%emt 0:00:01]} 3. e5 {[%emt 0:00:01]} c5 {[%emt 0:00:01]} 4. c3 {[%emt 0:00:01]} Nc6 {[%emt 0:00:02]} 5. Nf3 {[%emt 0:00:01]} Bd7 {[%emt 0:00:01]} 6. a3 {[%emt 0:00:02]} Qc7 {[%emt 0:00:03]} 7. b4 {[%emt 0:00:01]} cxd4 {[%emt 0:00:04]} 8. cxd4 {[%emt 0:00:01]} f6 {[%emt 0:00:03]} 9. exf6 {[%emt 0:00:10]} Nxf6 {[%emt 0:00:02]} 10. Bd3 {[%emt 0:00:03]} Bd6 {[%emt 0:00:17]} 11. Bb2 {[%emt 0:00:02]} O-O {[%emt 0:00:04]} 12. Nbd2 {[%emt 0:00:02]} a5 {[%emt 0:00:14]} 13. b5 {[%emt 0:00:05]} Ne7 {[%emt 0:00:02]} 14. a4 {[%emt 0:00:02]} b6 {[%emt 0:00:05]} 15. Rc1 {[%emt 0:00:02]} Qd8 {[%emt 0:00:15]} 16. O-O {[%emt 0:00:02]} Rc8 {[%emt 0:00:01]} 17. Qe2 {[%emt 0:00:02]} Ng6 {[%emt 0:00:12]} 18. Bxg6 {[%emt 0:00:18]} hxg6 {[%emt 0:00:01]} 19. Nh4 {[%emt 0:00:13]} g5 {[%emt 0:00:16]} 20. Ng6 {[%emt 0:00:10]} Rf7 {[%emt 0:00:02]} 21. Nf3 {[%emt 0:00:14]} Be8 {[%emt 0:00:02]} 22. Qxe6 {[%emt 0:00:10]} Kh7 {[%emt 0:00:18]} 23. Rxc8 {[%emt 0:00:04]} Qd7 {[%emt 0:00:18]} 24. Rxe8 {[%emt 0:00:44]} Nxe8 {[%emt 0:00:06]} 25. Qxd7 {[%emt 0:00:04]} Rxd7 {[%emt 0:00:02]} 26. Nge5 {[%emt 0:00:03]} Re7 {[%emt 0:00:18]} 27. Nxg5+ {[%emt 0:00:03]} Kg8 {[%emt 0:00:11]} 28. Ngf3 {[%emt 0:00:01]} Nf6 {[%emt 0:00:05]} 29. Rc1 {[%emt 0:00:01]} Ne4 {[%emt 0:00:01]} 30. h3 {[%emt 0:00:08]} Bc7 {[%emt 0:00:08]} 31. Nc6 {[%emt 0:00:04]} Rf7 {[%emt 0:00:06]} 32. Bc3 {[%emt 0:00:06]} Bd6 {[%emt 0:00:04]} 33. Be1 {[%emt 0:00:02]} Bc7 {[%emt 0:00:14]} 34. Nfe5 {[%emt 0:00:05]} Rf4 {[%emt 0:00:10]} 35. Ne7+ {[%emt 0:00:03]} Kh7 {[%emt 0:00:05]} 36. Rxc7 {[%emt 0:00:02]} Kh6 {[%emt 0:00:07]} 37. Rc6+ {[%emt 0:00:06]} Nf6 {[%emt 0:00:06]} 38. Ng8+ {[%emt 0:00:03]} Kg5 {[%emt 0:00:04]} 39. Nxf6 {[%emt 0:00:02]} gxf6 {[%emt 0:00:02]} 40. Nf3+ {[%emt 0:00:01]} Kg6 {[%emt 0:00:01]} 41. Bd2 {[%emt 0:00:06]} Re4 {[%emt 0:00:01]} 42. Rxb6 {[%emt 0:00:02]} Re2 {[%emt 0:00:01]} 43. Kf1 {[%emt 0:00:03]} Re4 {[%emt 0:00:01]} 44. Rc6 {[%emt 0:00:01]} Kf7 {[%emt 0:00:01]} 45. b6 {[%emt 0:00:01]} Ke7 {[%emt 0:00:01]} 46. b7 {[%emt 0:00:03]} Kd7 {[%emt 0:00:01]} 47. Rc5 {[%emt 0:00:01]} Re8 {[%emt 0:00:02]} 48. Bxa5 {[%emt 0:00:06]} Rb8 {[%emt 0:00:01]} 49. Rc7+ {[%emt 0:00:03]} Kd6 {[%emt 0:00:01]} 50. Bb6 {[%emt 0:00:05]} f5 {[%emt 0:00:02]} 51. a5 {[%emt 0:00:01]} f4 {[%emt 0:00:03]} 52. a6 {[%emt 0:00:01]} Ke6 {[%emt 0:00:05]} 53. a7 {[%emt 0:00:01]} Rf8 {[%emt 0:00:05]} 54. b8=Q {[%emt 0:00:02]} Rxb8 {[%emt 0:00:01]} 55. axb8=Q {[%emt 0:00:05]} Kf6 {[%emt 0:00:02]} 56. Qf8+ {[%emt 0:00:03]} Kg6 {[%emt 0:00:01]} 57. Rg7+ {[%emt 0:00:02]} Kh6 {[%emt 0:00:01]} 58. Qh8# {[%emt 0:00:01]} 1-0

[Event "German-ch Blitz Women 2022"]
[Site "Magdeburg"]
[Date "2022.08.13"]
[Round "11.11"]
[White "Zhou, Lepu Coco"]
[Black "Khrapko, Marharyta"]
[Result "0-1"]
[ECO "B32"]
[WhiteElo "1986"]
[BlackElo "2128"]
[Annotator "TA"]
[PlyCount "72"]
[EventDate "2022.08.10"]
[EventType "tourn"]
[EventCountry "GER"]
[SourceTitle "playchess.com"]
[Source "ChessBase"]
[SourceQuality "1"]
[TimeControl "180+2"]

{[%evp 14,72,28,19,27,33,41,22,48,-72,-71,-193,-200,-342,-325,-503,-513,-518,-495,-473,-468,-993,-965,-1118,-1168,-1367,-1153,-1152,-1150,-1612,-1605,-2240,-2353,-2028,-1841,-5452,-5593,-4928,-5243,-2978,-5985,-29987,-29988,-29991,-29979,-29977,-29978,-29991,-1198,-5568,-2101,-2131,-2122,-2063,-1776,-1888,-1722,-29988,-29989,-29955,-29955]} 1. e4 {[%emt 0:00:01]} c5 {[%emt 0:00:01]} 2. Nf3 {[%emt 0:00:01][%cal Bg1f3,Bf3d4,Bd4b5][%mdl 32]} Nc6 {[%emt 0:00:00]} 3. d4 {[%emt 0:00:02]} cxd4 {[%emt 0:00:01]} 4. Nxd4 {[%emt 0:00:00]} e5 {[%emt 0:00:02]} 5. Nb5 {[%emt 0:00:01]} d6 {[%emt 0:00:00]} 6. c4 {[%emt 0:00:02]} Be6 $1 {[%emt 0:00:08][%mdl 4] is recently more successful than 6...Be7.} 7. N1c3 {[%emt 0:00:02]} a6 {[%emt 0:00:01]} 8. Na3 {[%emt 0:00:01]} g6 {[%emt 0:00:03] B32: Sicilian: Löwenthal and Kalashnikov Variations.} 9. Bd3 {[%emt 0:00:05]} Bg7 {[%emt 0:00:02]} 10. O-O {[%emt 0:00:02]} (10. Nd5 {looks sharper.} Nf6 11. Bg5 h6 12. Be3) 10... Nge7 {[%emt 0:00:11] [#] The position is equal.} 11. f4 $146 {[%emt 0:00:01]} (11. Nd5 $14 {keeps the upper hand.}) ({Predecessor:} 11. Nc2 O-O 12. Bg5 Qd7 13. Qd2 Rac8 14. b3 Nd4 15. Nxd4 exd4 16. Ne2 Rfe8 17. Rad1 {1-0 (28) Zawadzka,J (2412)-Wikar,M (2160) Bydgoszcz 2022}) 11... exf4 $17 {[%emt 0:00:16]} 12. Bxf4 {[%emt 0:00:02]} (12. Rxf4 $17 O-O 13. Kh1) 12... Qb6+ $19 {[%emt 0:00:04]} 13. Kh1 {[%emt 0:00:04]} (13. Rf2 {is a better defense.} Bd4 14. Qd2) 13... Qxb2 {[%emt 0:00:02]} 14. Ncb5 {[%emt 0:00:30]} (14. Nd5 $142 Qxa3 15. Nc7+ Kd7 16. Nxa8 Rxa8 17. Rb1) 14... axb5 {[%emt 0:00:16]} ({And not} 14... Qxa1 15. Qxa1 Bxa1 16. Nxd6+ Kf8 17. Rxa1 $17) 15. Nxb5 {[%emt 0:00:01]} Qxa1 {[%emt 0:00:33]} 16. Nxd6+ {[%emt 0:00:30]} Kf8 {[%emt 0:00:08]} 17. Qf3 {[%emt 0:00:11]} (17. Qxa1 $142 Bxa1 18. Rxa1) 17... Qxa2 {[%emt 0:00:08]} 18. Bg5 {[%emt 0:00:07]} Ne5 {[%emt 0:00:16][%csl LRc4,LRf3]} 19. Qe3 {[%emt 0:00:15]} Nxd3 {[%emt 0:00:22]} 20. Qxd3 {[%emt 0:00:03]} h6 {[%emt 0:00:17]} 21. Bxe7+ {[%emt 0:00:07]} Kxe7 {[%emt 0:00:03]} 22. Nxb7 {[%emt 0:00:17]} Qa3 {[%emt 0:00:07]} 23. Qd2 {[%emt 0:00:16]} Rab8 {[%emt 0:00:07]} 24. c5 {[%emt 0:00:29]} Rxb7 {[%emt 0:00:16]} 25. Qd6+ {[%emt 0:00:02]} Ke8 {[%emt 0:00:01] [#] Hoping for ...Rd7.} 26. Qc6+ {[%emt 0:00:03]} Rd7 {[%emt 0:00:04] ( -> ...Be5)} 27. Rb1 {[%emt 0:00:18]} Be5 {[%emt 0:00:05]} 28. Qb6 {[%emt 0:00:15]} Qa7 {[%emt 0:00:13]} 29. Qb5 {[%emt 0:00:03]} Ke7 {[%emt 0:00:03]} 30. c6 {[%emt 0:00:01]} Rc7 {[%emt 0:00:03]} 31. Rd1 {[%emt 0:00:06]} Bf6 {[%emt 0:00:03]} 32. Qb4+ {[%emt 0:00:01]} Ke8 {[%emt 0:00:04]} 33. Qb5 {[%emt 0:00:02]} Be7 {[%emt 0:00:03]} 34. Rb1 {[%emt 0:00:02]} Kf8 {[%emt 0:00:02] [#] Threatens to win with ...Kg7.} 35. Qb8+ {[%emt 0:00:02]} Qxb8 {[%emt 0:00:01]} 36. Rxb8+ {[%emt 0:00:01]} Kg7 {[%emt 0:00:00] White did not feel at home in the position after the opening.  Weighted Error Value: White=1.46/Black=0.28 (precise)} 0-1

[Event "German-ch Blitz Women 2022"]
[Site "Magdeburg"]
[Date "2022.08.13"]
[Round "11.12"]
[White "Muetsch, Annmarie"]
[Black "Daemering, Katrin"]
[Result "0-1"]
[ECO "B52"]
[WhiteElo "2249"]
[BlackElo "1965"]
[Annotator "TA"]
[PlyCount "80"]
[EventDate "2022.08.10"]
[EventType "tourn"]
[EventCountry "GER"]
[SourceTitle "playchess.com"]
[Source "ChessBase"]
[SourceQuality "1"]
[TimeControl "180+2"]

{[%evp 9,79,11,22,9,31,27,28,23,24,7,15,0,16,9,31,23,26,31,25,0,14,0,18,0,0,8,12,-9,0,-67,-6,-77,-82,-103,-110,-179,-172,-174,-129,-160,-117,-123,-62,-137,-90,-285,-270,-303,648,0,0,-71,260,-550,-546,-533,-322,-592,-8,-589,29997,-1265,-1254,-1705,-1701,-1722,-692,-29989,-29990,-29999,29979,-29999]} 1. e4 {[%emt 0:00:01]} c5 {[%emt 0:00:01]} 2. Nf3 {[%emt 0:00:02]} d6 {[%emt 0:00:01]} 3. Bb5+ {[%emt 0:00:02]} Bd7 {[%emt 0:00:01]} 4. c4 {[%emt 0:00:02]} e6 {[%emt 0:00:01]} 5. Nc3 {[%emt 0:00:01]} Nf6 {[%emt 0:00:01]} 6. O-O {[%emt 0:00:03] B52: Sicilian: Moscow Variation with 3...Bd7.} Be7 {[%emt 0:00:02]} 7. d4 {[%emt 0:00:02]} cxd4 {[%emt 0:00:01]} 8. Nxd4 {[%emt 0:00:01] White has an edge.} O-O {[%emt 0:00:02]} 9. Re1 {[%emt 0:00:06]} a6 {[%emt 0:00:10] [#]} 10. Ba4 $146 {[%emt 0:00:04]} ({Predecessor:} 10. Bxd7 Nbxd7 11. b3 Qc7 12. Bb2 Rfe8 13. Qd3 Ne5 14. Qg3 Ng6 15. Rad1 Rad8 16. Kh1 Qa5 17. Nc2 Rd7 18. Rf1 Qh5 19. f4 Qg4 20. Qf2 {0-1 (41) Ali,M (2399)-Lorenzo,K (1769) Tornelo INT 2021}) 10... Qc7 {[%emt 0:00:07]} 11. Bb3 {[%emt 0:00:34]} Nc6 {[%emt 0:00:08]} 12. Nxc6 {[%emt 0:00:02]} Bxc6 {[%emt 0:00:17]} 13. Bf4 {[%emt 0:00:05]} Rfd8 {[%emt 0:00:06]} 14. Qe2 {[%emt 0:00:06][%cal Oc3d5]} Rac8 {[%emt 0:00:06]} 15. Rad1 {[%emt 0:00:05]} h6 {[%emt 0:00:16]} 16. c5 {[%emt 0:00:03]} e5 {[%emt 0:00:06]} 17. cxd6 $1 {[%emt 0:00:06]} Bxd6 {[%emt 0:00:08]} 18. Bc1 {[%emt 0:00:17]} Bb4 {[%emt 0:00:13]} 19. Qf3 {[%emt 0:00:43]} ({White should try} 19. Rxd8+ $11 Rxd8 20. f3) 19... Bxc3 {[%emt 0:00:08]} (19... Rxd1 $15 20. Rxd1 Bxc3 21. Qxc3 Nxe4) 20. bxc3 {[%emt 0:00:02]} (20. Rxd8+ $11 {remains equal.} Qxd8 21. bxc3) 20... Rxd1 $40 {[%emt 0:00:09][%mdl 128] Black has strong attack.} 21. Bxd1 {[%emt 0:00:18][%cal Oc1h6]} Bxe4 {[%emt 0:00:09]} 22. Qe2 {[%emt 0:00:40]} ({Not} 22. Rxe4 $2 Nxe4 23. Qxe4 Qxc3 24. Bxh6 Rd8 $19) (22. Qg3 $17 {keeps fighting.}) 22... Qxc3 {[%emt 0:00:09]} 23. Bb2 {[%emt 0:00:09]} Qc5 {[%emt 0:00:22]} 24. h3 {[%emt 0:00:04]} Rd8 {[%emt 0:00:11]} 25. Bb3 {[%emt 0:00:05]} b5 {[%emt 0:00:12]} (25... Re8 $17 26. Qd2 Qc6) 26. Kh2 {[%emt 0:00:03]} (26. Rc1 $15 Qe7 27. f3) 26... Qb4 {[%emt 0:00:11]} ({Better is} 26... Re8 27. Qd2 a5) 27. f3 $2 {[%emt 0:00:03]} (27. Bxe5 $17 {was necessary.} Bd5 28. Rd1) 27... Rd2 {[%emt 0:00:02]} 28. Qe3 {[%emt 0:00:04]} Bb7 $4 {[%emt 0:00:14][%mdl 8192]} (28... Rxb2 $19 29. fxe4 Qd2 30. Qxd2 Rxd2) 29. Bxe5 $2 {[%emt 0:00:02] A strong pair of Bishops.} ({White has to play} 29. Bc3 $18 Qd6 30. Qxd2 Qxd2 31. Bxd2) 29... Nd5 $11 {[%emt 0:00:12]} 30. Qe4 {[%emt 0:00:03]} (30. Qa7 $11 {keeps the balance.} Bc8 31. Re4) 30... Qc5 $2 {[%emt 0:00:10][%mdl 8192]} (30... Qxe4 $17 {and life is bright.} 31. Rxe4 Ne7) 31. Bd4 $4 {[%emt 0:00:02][%mdl 8192]} Rxd4 $19 {[%emt 0:00:03]} 32. Qe8+ {[%emt 0:00:02]} Kh7 {[%emt 0:00:01]} 33. Re2 $2 {[%emt 0:00:03]} (33. Qxf7 {was the only defense.} Qd6+ 34. Kh1) 33... Nf4 $2 {[%emt 0:00:02]} (33... Qc7+ $19 34. Kh1 Qf4) 34. Bc2+ $2 {[%emt 0:00:01][%mdl 8192]} (34. Bxf7 $11 {and White is okay.} Qc8 35. Bg8+ Kh8 36. Bd5+ Qxe8 37. Rxe8+ Kh7 38. Bxb7) 34... g6 $4 {[%emt 0:00:01][%mdl 8192]} (34... f5 $19 35. Qf7 {[#]} Qd6 $1 36. Bxf5+ Ng6+ 37. Kg1 Rd1+ 38. Kf2 Bc8 $1 {[%mdl 512]}) 35. Rf2 $4 {[%emt 0:00:01][%mdl 8192]} (35. Qxf7+ Kh8 36. Re8+ Qf8 37. Rxf8#) 35... Qc7 {[%emt 0:00:03] And now ...Bc6 would win.} 36. g3 {[%emt 0:00:02]} Ne6 {[%emt 0:00:01] ...Rd8 is the strong threat.} 37. Bb3 {[%emt 0:00:02]} Rd3 {[%emt 0:00:01] Hoping for ...Ng5.} 38. f4 {[%emt 0:00:02] Prevents Ng5.} Re3 {[%emt 0:00:01]} 39. f5 {[%emt 0:00:01]} Ng7 $4 {[%emt 0:00:03][%mdl 8192]} 40. Qf8 $4 {[%emt 0:00:01][%mdl 8192]} (40. fxg6+ {is the narrow road to win.} Kxg6 41. Bxf7+ Qxf7 42. Qxf7+ Kh7 43. Qxb7 Re5 44. Rf7 Rg5 45. Qe4+ Kg8 46. Ra7) 40... Qxg3# {[%emt 0:00:02] Weighted Error Value: White=1.14/Black=0.92} 0-1

[Event "German-ch Blitz Women 2022"]
[Site "Magdeburg"]
[Date "2022.08.13"]
[Round "12.1"]
[White "Paehtz, Elisabeth"]
[Black "Daemering, Katrin"]
[Result "1-0"]
[ECO "A41"]
[WhiteElo "2484"]
[BlackElo "1965"]
[Annotator "TA"]
[PlyCount "95"]
[EventDate "2022.08.10"]
[EventType "tourn"]
[EventCountry "GER"]
[SourceTitle "playchess.com"]
[Source "ChessBase"]
[SourceQuality "1"]
[TimeControl "180+2"]

{[%evp 9,95,28,50,45,37,39,52,2,20,20,133,66,68,72,280,189,213,229,197,198,257,250,277,272,271,265,339,348,403,406,411,382,471,305,416,292,290,297,297,270,443,359,611,626,631,631,641,618,778,771,708,525,503,480,671,450,605,529,537,460,595,571,700,694,796,699,1084,1050,904,654,1237,1237,1409,1269,1741,1677,29986,29986,29989,29990,29992,29993,29993,29993,29995,29996,29996,29996]} 1. d4 {[%emt 0:00:01]} d6 {[%emt 0:00:00]} 2. Nf3 {[%emt 0:00:02]} g6 {[%emt 0:00:02]} 3. c3 {[%emt 0:00:02]} Bg7 {[%emt 0:00:01]} 4. Bg5 {[%emt 0:00:02]} Nd7 {[%emt 0:00:06]} 5. e4 {[%emt 0:00:01]} c5 {[%emt 0:00:01]} 6. Bd3 {[%emt 0:00:07] A40: Unusual replies to 1 d4.} Ngf6 {[%emt 0:00:11]} 7. O-O {[%emt 0:00:05]} h6 {[%emt 0:00:04]} 8. Bh4 {[%emt 0:00:01]} (8. Be3 $14) 8... O-O {[%emt 0:00:05]} 9. e5 {[%emt 0:00:07] [#]} Ne8 $146 {[%emt 0:00:32]} (9... dxe5 $11 10. dxe5 Ng4) ({Predecessor:} 9... dxe5 10. dxe5 Ng4 11. e6 Nde5 12. exf7+ Kh7 13. Nxe5 Nxe5 14. Bc2 Qxd1 15. Rxd1 Nc6 {1-0 (61) Baldursson,R (1984)-Holgarsson,R (1454) Faroe Islands 2019}) 10. Re1 {[%emt 0:00:33] White is more active.} (10. e6 $16) 10... dxe5 $14 {[%emt 0:00:04]} 11. dxe5 {[%emt 0:00:01] [#] aiming for e6.} Qb6 {[%emt 0:00:29] This costs Black the game.} (11... Nc7 $16) 12. Qc2 {[%emt 0:00:11]} ({Don't play} 12. Bxe7 Qxb2 13. Nbd2 Qxc3 $18) 12... Nc7 {[%emt 0:00:25]} 13. Bxe7 {[%emt 0:00:08]} Re8 {[%emt 0:00:01]} 14. Bd6 {[%emt 0:00:06]} Nd5 {[%emt 0:00:13]} (14... Nf8 $142 15. Nbd2 Be6) 15. Nbd2 $18 {[%emt 0:00:08]} Nf4 {[%emt 0:00:09]} 16. Nc4 {[%emt 0:00:05]} Qc6 {[%emt 0:00:05]} 17. Be4 {[%emt 0:00:02]} Qb5 {[%emt 0:00:02]} 18. b3 {[%emt 0:00:05]} a5 {[%emt 0:00:23]} 19. a4 {[%emt 0:00:03]} Qa6 {[%emt 0:00:01]} 20. Rad1 {[%emt 0:00:02]} Ne6 {[%emt 0:00:21]} 21. Bd5 {[%emt 0:00:05] Black must now prevent Nh4.} Ndf8 {[%emt 0:00:10]} 22. Qd2 {[%emt 0:00:11]} Bd7 {[%emt 0:00:01]} 23. Bxf8 {[%emt 0:00:10]} Bxf8 {[%emt 0:00:04]} 24. Qe3 {[%emt 0:00:09][%cal Oc4d6] Hoping for Nd6!} Rac8 $2 {[%emt 0:00:01]} (24... Bc6 {might work better.} 25. Nd6 Bxd5) 25. Nfd2 {[%emt 0:00:02] [#] Ne4 is the strong threat.} b5 $2 {[%emt 0:00:04]} (25... Nc7 26. Ne4 Nxd5 27. Rxd5 Bf5 28. Nf6+ Kg7 29. Nxe8+ Rxe8) 26. axb5 {[%emt 0:00:03]} Bxb5 {[%emt 0:00:02]} 27. Ne4 {[%emt 0:00:02]} Bxc4 {[%emt 0:00:05]} 28. Bxc4 {[%emt 0:00:01]} Qb6 {[%emt 0:00:02]} 29. Nf6+ {[%emt 0:00:01]} Kg7 {[%emt 0:00:01]} 30. Nxe8+ {[%emt 0:00:02]} Rxe8 {[%emt 0:00:01]} 31. Qf3 {[%emt 0:00:04]} Be7 {[%emt 0:00:02] Against Qf6+} 32. h3 {[%emt 0:00:08]} Ng5 {[%emt 0:00:02]} 33. Qe3 {[%emt 0:00:06]} Qc6 {[%emt 0:00:05]} 34. Rd5 {[%emt 0:00:18]} a4 {[%emt 0:00:03]} 35. bxa4 {[%emt 0:00:03]} Qxa4 {[%emt 0:00:01]} 36. Qd3 {[%emt 0:00:03]} Qc6 {[%emt 0:00:05]} 37. Rd1 {[%emt 0:00:01]} Qc7 {[%emt 0:00:02]} 38. f4 {[%emt 0:00:05][%cal Bf2f4,Bf4f5,Bf5f6][%mdl 32] Threatens to win with Rd7.} Ne6 {[%emt 0:00:01]} 39. Qf3 {[%emt 0:00:04] And now Rd7 would win.} Qb7 {[%emt 0:00:04]} 40. f5 {[%emt 0:00:10]} Ng5 {[%emt 0:00:03]} 41. f6+ {[%emt 0:00:03]} Kh7 {[%emt 0:00:01]} 42. Qd3 {[%emt 0:00:05]} Bf8 {[%emt 0:00:01]} 43. h4 {[%emt 0:00:04] White mates.} Ne6 {[%emt 0:00:02]} 44. Rd7 {[%emt 0:00:03][%cal Bd5d7,Bd7b7,Bb7f7][%mdl 32]} Nf4 {[%emt 0:00:07]} 45. Rxb7 {[%emt 0:00:02]} Nxd3 {[%emt 0:00:02]} 46. Rxd3 {[%emt 0:00:03]} Rxe5 {[%emt 0:00:02]} 47. Rxf7+ {[%emt 0:00:02]} Kg8 {[%emt 0:00:01]} 48. Rdd7 {[%emt 0:00:04] Weighted Error Value: White=0.39/Black=0.80} 1-0